fUSD/lending_fUSD_20240521
["ID","MTS","AMOUNT","RATE_DAILY","PERIOD"]
[327644525,1716270656082,-384.8551635,0.00035479,6]
[327644527,1716270656091,-563.28,0.00035479,6]
[327644529,1716270656100,-814.09,0.00035479,6]
[327644531,1716270656109,-563.28,0.00035479,6]
[327644533,1716270656119,-814.09,0.00035479,6]
[327644535,1716270656128,-563.28,0.00035479,6]
[327644537,1716270656138,-814.09,0.00035479,6]
[327644539,1716270656148,-563.28,0.00035479,6]
[327644542,1716270656157,-814.09,0.00035479,6]
[327644543,1716270656172,-563.28,0.00035479,6]
[327644545,1716270656181,-1521.08,0.00035479,6]
[327644547,1716270656191,-814.09,0.00035479,6]
[327644550,1716270656202,-563.28,0.00035479,6]
[327644551,1716270656211,-563.28,0.00035479,6]
[327644553,1716270656221,-1471.35,0.00035479,6]
[327644555,1716270656230,-500.0,0.00035479,6]
[327644558,1716270656239,-563.28,0.00035479,6]
[327644560,1716270656253,-1521.08,0.00035479,6]
[327644561,1716270656263,-1471.35,0.00035479,6]
[327644563,1716270656273,-1471.35,0.00035479,6]
[327644565,1716270656282,-1521.08,0.00035479,6]
[327644567,1716270656292,-1471.35,0.00035479,6]
[327644569,1716270656301,-500.0,0.00035479,6]
[327644571,1716270656311,-1521.08,0.00035479,6]
[327644574,1716270656320,-1471.35,0.00035479,6]
[327644575,1716270656329,-500.0,0.00035479,6]
[327644578,1716270656339,-1521.08,0.00035479,6]
[327644579,1716270656349,-500.0,0.00035479,6]
[327644581,1716270656358,-563.28,0.00035479,6]
[327644583,1716270656367,-500.0,0.00035479,6]
[327644585,1716270656376,-563.28,0.00035479,6]
[327644588,1716270656386,-563.28,0.00035479,6]
[327644589,1716270656395,-500.0,0.00035479,6]
[327644590,1716270656404,-563.28,0.00035479,6]
[327644591,1716270656415,-828.95,0.00035479,6]
[327644592,1716270656426,-563.28,0.00035479,6]
[327644593,1716270656436,-828.95,0.00035479,6]
[327644594,1716270656445,-563.28,0.00035479,6]
[327644595,1716270656454,-828.95,0.00035479,6]
[327644596,1716270656465,-563.28,0.00035479,6]
[327644597,1716270656474,-151.0,0.00035479,7]
[327644598,1716270656485,-828.95,0.00035479,6]
[327644599,1716270656494,-563.28,0.00035479,6]
[327644600,1716270656503,-828.95,0.00035479,6]
[327644601,1716270656513,-828.95,0.00035479,6]
[327644602,1716270656522,-828.95,0.00035479,6]
[327644603,1716270656531,-828.95,0.00035479,6]
[327644604,1716270656540,-828.95,0.00035479,6]
[327644605,1716270656550,-828.95,0.00035479,6]
[327644606,1716270656559,-1750.85,0.00035479,6]
[327644607,1716270656568,-828.95,0.00035479,6]
[327644608,1716270656577,-1750.85,0.00035479,6]
[327644609,1716270656586,-828.95,0.00035479,6]
[327644610,1716270656596,-828.95,0.00035479,6]
[327644611,1716270656605,-828.95,0.00035479,6]
[327644612,1716270656615,-828.95,0.00035479,6]
[327644613,1716270656624,-528.15649434,0.00035479,6]
[327644614,1716270656633,-500.0,0.00035479,6]
[327644615,1716270656643,-828.95,0.00035479,6]
[327644617,1716270656652,-500.0,0.00035479,6]
[327644618,1716270656661,-500.0,0.00035479,6]
[327644619,1716270656671,-828.95,0.00035479,6]
[327644620,1716270656681,-500.0,0.00035479,6]
[327644621,1716270656690,-500.0,0.00035479,6]
[327644622,1716270656699,-500.0,0.00035479,6]
[327644623,1716270656709,-500.0,0.00035479,6]
[327644624,1716270656718,-500.0,0.00035479,6]
[327644625,1716270656728,-500.0,0.00035479,6]
[327644626,1716270656738,-500.0,0.00035479,6]
[327644627,1716270656747,-500.0,0.00035479,6]
[327644628,1716270656758,-500.0,0.00035479,6]
[327644629,1716270656767,-518.43568715,0.00035479,6]
[327644630,1716270656776,-500.0,0.00035479,6]
[327644631,1716270656785,-500.0,0.00035479,6]
[327644632,1716270656794,-500.0,0.00035479,6]
[327644633,1716270656803,-500.0,0.00035479,6]
[327644634,1716270656814,-382.57017037,0.00035479,6]
[327644635,1716270656823,-500.0,0.00035479,6]
[327644636,1716270656833,-500.0,0.00035479,6]
[327644637,1716270656842,-500.0,0.00035479,6]
[327644638,1716270656852,-864.14,0.00035479,6]
[327644639,1716270656862,-500.0,0.00035479,6]
[327644640,1716270656873,-500.0,0.00035479,6]
[327644641,1716270656884,-500.0,0.00035479,6]
[327644642,1716270656894,-864.14,0.00035479,6]
[327644643,1716270656904,-286.41971688,0.00035479,6]
[327644644,1716270656913,-864.14,0.00035479,6]
[327644645,1716270656922,-864.14,0.00035479,6]
[327644646,1716270656932,-864.14,0.00035479,6]
[327644647,1716270656941,-2510.49,0.00035479,6]
[327644648,1716270656950,-609.39,0.00035479,6]
[327644649,1716270656959,-2510.49,0.00035479,6]
[327644650,1716270656968,-609.39,0.00035479,6]
[327644651,1716270656977,-864.14,0.00035479,6]
[327644652,1716270656987,-2510.49,0.00035479,6]
[327644653,1716270656996,-609.39,0.00035479,6]
[327644654,1716270657005,-864.14,0.00035479,6]
[327644655,1716270657014,-2510.49,0.00035479,6]
[327644656,1716270657024,-609.39,0.00035479,6]
[327644657,1716270657033,-2510.49,0.00035479,6]
[327644658,1716270657043,-609.39,0.00035479,6]
[327644659,1716270657052,-2510.49,0.00035479,6]
[327644660,1716270657062,-864.14,0.00035479,6]
[327644661,1716270657071,-2510.49,0.00035479,6]
[327644662,1716270657080,-864.14,0.00035479,6]
[327644663,1716270657089,-2510.49,0.00035479,6]
[327644664,1716270657099,-864.14,0.00035479,6]
[327644665,1716270657108,-2510.49,0.00035479,6]
[327644666,1716270657117,-151.0,0.00035479,7]
[327644667,1716270657127,-864.14,0.00035479,6]
[327644668,1716270657137,-500.0,0.00035479,6]
[327644669,1716270657146,-864.14,0.00035479,6]
[327644670,1716270657155,-2510.49,0.00035479,6]
[327644671,1716270657167,-864.14,0.00035479,6]
[327644672,1716270657178,-2510.49,0.00035479,6]
[327644673,1716270657187,-500.0,0.00035479,6]
[327644674,1716270657196,-864.14,0.00035479,6]
[327644675,1716270657205,-500.0,0.00035479,6]
[327644676,1716270657216,-2510.49,0.00035479,6]
[327644677,1716270657225,-864.14,0.00035479,6]
[327644678,1716270657235,-500.0,0.00035479,6]
[327644679,1716270657246,-864.14,0.00035479,6]
[327644680,1716270657259,-586.24042019,0.00035479,6]
[327644681,1716270657269,-709.6,0.00035479,6]
[327644682,1716270657278,-864.14,0.00035479,6]
[327644683,1716270657297,-2510.49,0.00035479,6]
[327644684,1716270657308,-709.6,0.00035479,6]
[327644685,1716270657318,-2510.49,0.00035479,6]
[327644686,1716270657328,-709.6,0.00035479,6]
[327644687,1716270657337,-2510.49,0.00035479,6]
[327644688,1716270657347,-709.6,0.00035479,6]
[327644689,1716270657356,-838.98876707,0.00035479,6]
[327644690,1716270657491,-1671.50123293,0.00035479,6]
[327644691,1716270657501,-709.6,0.00035479,6]
[327644692,1716270657510,-2510.49,0.00035479,6]
[327644693,1716270657520,-500.0,0.00035479,6]
[327644694,1716270657529,-500.0,0.00035479,6]
[327644695,1716270657538,-500.0,0.00035479,6]
[327644696,1716270657547,-645.95,0.00035479,6]
[327644697,1716270657557,-500.0,0.00035479,6]
[327644698,1716270657566,-645.95,0.00035479,6]
[327644700,1716270657577,-500.0,0.00035479,6]
[327644701,1716270657587,-645.95,0.00035479,6]
[327644702,1716270657596,-645.95,0.00035479,6]
[327644703,1716270657606,-500.0,0.00035479,6]
[327644704,1716270657616,-645.95,0.00035479,6]
[327644705,1716270657625,-500.0,0.00035479,6]
[327644706,1716270657636,-519.15061539,0.00035479,6]
[327644707,1716270657645,-500.0,0.00035479,6]
[327644708,1716270657656,-1097.95,0.00035479,6]
[327644709,1716270657665,-500.0,0.00035479,6]
[327644710,1716270657675,-500.0,0.00035479,6]
[327644711,1716270657684,-500.0,0.00035479,6]
[327644712,1716270657695,-500.0,0.00035479,6]
[327644713,1716270657704,-500.0,0.00035479,6]
[327644714,1716270657715,-500.0,0.00035479,6]
[327644715,1716270657724,-500.0,0.00035479,6]
[327644716,1716270657735,-500.0,0.00035479,6]
[327644717,1716270657745,-500.0,0.00035479,6]
[327644718,1716270657755,-803.6,0.00035479,6]
[327644719,1716270657765,-803.6,0.00035479,6]
[327644720,1716270657774,-500.0,0.00035479,6]
[327644721,1716270657784,-803.6,0.00035479,6]
[327644722,1716270657793,-643.69445626,0.00035479,6]
[327644723,1716270657803,-803.6,0.00035479,6]
[327644724,1716270657813,-803.6,0.00035479,6]
[327644725,1716270657822,-500.0,0.00035479,6]
[327644726,1716270657832,-500.0,0.00035479,6]
[327644727,1716270657842,-500.0,0.00035479,6]
[327644728,1716270657852,-500.0,0.00035479,6]
[327644729,1716270657867,-500.0,0.00035479,6]
[327644730,1716270657878,-147.49465816,0.00035479,6]
[327644731,1716270657904,-352.50534184,0.00035479,6]
[327644732,1716270657914,-88.7869293,0.00035479,6]
[327644733,1716270657927,-1114.7130707,0.00035479,6]
[327644734,1716270657938,-500.0,0.00035479,6]
[327644735,1716270657948,-736.45,0.00035479,6]
[327644736,1716270657958,-1203.5,0.00035479,6]
[327644737,1716270657968,-500.0,0.00035479,6]
[327644738,1716270657978,-432.3255782,0.00035479,6]
[327644739,1716270657992,-304.1244218,0.00035479,6]
[327644740,1716270658002,-565.7,0.00035479,6]
[327644741,1716270658012,-736.45,0.00035479,6]
[327644742,1716270658022,-282.81150235,0.00035479,6]
[327644743,1716270660288,-415.6,0.00034548,2]
[327644744,1716270660298,-295.69731154,0.00035217,2]
[327644745,1716270660308,-10000.0,0.00035265,2]
[327644746,1716270660318,-218.47697766,0.00035477,4]
[327644747,1716270660328,-500.0,0.00035478,6]
[327644748,1716270660337,-218.995288,0.00035478,6]
[327644749,1716270660347,-217.18849765,0.00035479,6]
[327644750,1716270660357,-565.7,0.00035479,6]
[327644751,1716270660367,-736.45,0.00035479,6]
[327644752,1716270660377,-500.0,0.00035479,6]
[327644753,1716270660386,-500.0,0.00035479,6]
[327644754,1716270660395,-565.7,0.00035479,6]
[327644755,1716270660405,-736.45,0.00035479,6]
[327644756,1716270660414,-736.45,0.00035479,6]
[327644757,1716270660423,-565.7,0.00035479,6]
[327644758,1716270660432,-736.45,0.00035479,6]
[327644759,1716270660441,-565.7,0.00035479,6]
[327644760,1716270660450,-736.45,0.00035479,6]
[327644761,1716270660461,-565.7,0.00035479,6]
[327644762,1716270660470,-500.0,0.00035479,6]
[327644763,1716270660480,-736.45,0.00035479,6]
[327644764,1716270660490,-151.0,0.00035479,7]
[327644765,1716270660500,-500.0,0.00035479,6]
[327644766,1716270660510,-565.7,0.00035479,6]
[327644767,1716270660520,-736.45,0.00035479,6]
[327644768,1716270660529,-500.0,0.00035479,6]
[327644769,1716270660539,-500.0,0.00035479,6]
[327644770,1716270660549,-565.7,0.00035479,6]
[327644771,1716270660558,-465.53492516,0.00035479,6]
[327644772,1716270660596,-270.91507484,0.00035479,6]
[327644773,1716270660606,-0.65744224,0.00035479,6]
[327644774,1716270660618,-499.34255776,0.00035479,6]
[327644775,1716270660628,-323.07277611,0.00035479,6]
[327644776,1716270660640,-176.92722389,0.00035479,6]
[327644777,1716270660659,-565.7,0.00035479,6]
[327644778,1716270660670,-678.03277611,0.00035479,6]
[327644781,1716270745221,160.88,0.00013973,2]
[327644787,1716271231121,155.67,0.00013973,2]
[327644792,1716271298009,-1720.92134525,0.00017259,2]
[327644793,1716271298029,-252.44625317,0.00017533,2]
[327644794,1716271327251,240.77238663,0.00017533,2]
[327644795,1716271357945,-208.72291039,0.000197,2]
[327644796,1716271357968,-150.0,0.00019725,2]
[327644797,1716271357989,-300.0,0.000198,2]
[327644798,1716271358009,-156.1574,0.000198,2]
[327644799,1716271358029,-808.5906,0.000198,2]
[327644800,1716271382294,150.0,0.00019725,2]
[327644801,1716271410353,-155.0,0.0002,4]
[327644802,1716271410606,-163.38,0.00021918,2]
[327644803,1716271414401,208.72291038,0.00021943,2]
[327644804,1716271452705,-557.28619418,0.00022,2]
[327644805,1716271553174,-213.15151182,0.00022042,2]
[327644809,1716271653334,-153.42116948,0.00022938,2]
[327644810,1716271653362,-153.67101316,0.00023057,2]
[327644811,1716271653387,-787.45461326,0.00023186,2]
[327644812,1716271653413,-153.86618259,0.00023187,2]
[327644813,1716271653439,-155.67,0.00023435,2]
[327644814,1716271653463,-499.99,0.000243,2]
[327644815,1716271653492,-210.17,0.000243,2]
[327644816,1716271653515,-994.48,0.000243,2]
[327644817,1716271653542,-155.56943574,0.0002501,2]
[327644818,1716271653566,-252.44625317,0.00026214,2]
[327644819,1716271653590,-164.75,0.00026315,2]
[327644820,1716271653615,-3074.0,0.000288,3]
[327644821,1716271653643,-240.77238663,0.00029219,2]
[327644822,1716271653668,-7982.80539292,0.0003,3]
[327644823,1716271762085,-206.7042,0.00021942,2]
[327644824,1716271762104,-155.0,0.00029999,4]
[327644825,1716271762123,-753.69136163,0.0003,3]
[327644843,1716271832335,-1457.62574935,0.00029899,3]
[327644845,1716271832348,-444.68515065,0.00029899,3]
[327644847,1716271832359,-1005.57185092,0.00029944,2]
[327644849,1716271832370,-313.09038903,0.0003,3]
[327644851,1716271832382,-1204.70359216,0.0003,3]
[327644853,1716271832394,-284.964,0.0003,3]
[327644856,1716271832411,-27403.69264532,0.0003,3]
[327644858,1716271832422,-208.0,0.0003051,2]
[327644860,1716271832432,-153.86618259,0.00030562,7]
[327644862,1716271832442,-153.67101316,0.00031116,7]
[327644864,1716271832453,-208.0,0.0003146,2]
[327644866,1716271832464,-1288.8,0.00031616,2]
[327644868,1716271832474,-150.0,0.00031754,2]
[327644870,1716271832485,-339.17922691,0.00032163,4]
[327644871,1716271832496,-2000.0,0.00032164,2]
[327644872,1716271832506,-1000.0,0.00032164,2]
[327644873,1716271832516,-1058.00044008,0.00032408,4]
[327644874,1716271832527,-323.49456937,0.00032409,4]
[327644875,1716271832538,-208.0,0.0003241,2]
[327644876,1716271832550,-250.0,0.00032716,2]
[327644877,1716271832561,-250.0,0.00032797,2]
[327644878,1716271832570,-267.48,0.0003281,2]
[327644879,1716271832580,-155.67,0.00032898,2]
[327644880,1716271832591,-153.86618259,0.00033184,7]
[327644881,1716271832601,-171.93,0.00033219,120]
[327644882,1716271832611,-208.0,0.0003336,2]
[327644883,1716271832621,-3078.29,0.00033423,2]
[327644884,1716271832633,-4000.0,0.00033471,2]
[327644886,1716271832644,-153.7,0.000335,2]
[327644889,1716271832654,-153.7,0.000335,2]
[327644891,1716271832665,-153.7,0.000335,2]
[327644893,1716271832675,-153.7,0.000335,2]
[327644895,1716271832685,-153.7,0.000335,2]
[327644897,1716271832695,-153.7,0.000335,2]
[327644899,1716271832704,-153.7,0.000335,2]
[327644901,1716271832714,-153.7,0.000335,2]
[327644903,1716271832725,-153.7,0.000335,2]
[327644905,1716271832735,-153.7,0.000335,2]
[327644907,1716271832744,-153.7,0.000335,2]
[327644909,1716271832755,-396.37,0.00033503,2]
[327644911,1716271832766,-415.6,0.00033589,2]
[327644913,1716271832776,-415.6,0.00033589,2]
[327644915,1716271832785,-415.6,0.00033589,2]
[327644917,1716271832795,-411.82,0.00033589,2]
[327644919,1716271832805,-1288.8,0.0003388,2]
[327644921,1716271832815,-544.0,0.00033933,2]
[327644923,1716271832824,-1228.023,0.00033933,2]
[327644925,1716271832834,-1643.0,0.00033933,2]
[327644927,1716271832844,-1263.0,0.00033933,2]
[327644929,1716271832854,-445.0,0.00033933,2]
[327644931,1716271832864,-809.0,0.00033933,2]
[327644933,1716271832874,-164.0,0.00033933,2]
[327644935,1716271832884,-439.0,0.00033933,2]
[327644936,1716271832894,-613.0,0.00033933,2]
[327644937,1716271832905,-150.701,0.00033933,2]
[327644938,1716271832915,-1648.0,0.00033933,2]
[327644939,1716271832925,-2395.0,0.00033933,2]
[327644940,1716271832934,-150.0,0.00033933,2]
[327644941,1716271832944,-415.6,0.00034041,2]
[327644942,1716271832953,-170.95,0.00034043,2]
[327644943,1716271832963,-153.29266499,0.00034056,7]
[327644944,1716271832973,-215.0,0.00034289,2]
[327644945,1716271832983,-1137.0,0.00034289,2]
[327644946,1716271832993,-3161.0,0.00034289,2]
[327644947,1716271833004,-208.0,0.0003431,2]
[327644948,1716271833014,-869.81,0.00034548,2]
[327644949,1716271833024,-869.81,0.00034548,2]
[327644950,1716271833034,-196.88,0.00034548,2]
[327644951,1716271833044,-151.25,0.00034685,2]
[327644952,1716271833053,-150.0,0.00034685,2]
[327644953,1716271833063,-420.52,0.00034685,2]
[327644954,1716271833072,-524.14,0.00034685,2]
[327644955,1716271833082,-150.44,0.00034685,2]
[327644956,1716271833092,-150.0,0.00034685,2]
[327644957,1716271833102,-357.28,0.00034685,2]
[327644958,1716271833112,-433.94,0.00034685,2]
[327644959,1716271833122,-156.98,0.00034685,2]
[327644960,1716271833131,-326.03,0.00034685,2]
[327644961,1716271833141,-524.14,0.00034685,2]
[327644962,1716271833151,-150.0,0.00034685,2]
[327644963,1716271833161,-351.89,0.00034685,2]
[327644964,1716271833171,-351.89,0.00034685,2]
[327644965,1716271833180,-342.95,0.00034685,2]
[327644966,1716271833190,-150.0,0.00034685,2]
[327644967,1716271833200,-150.0,0.00034685,2]
[327644968,1716271833210,-351.89,0.00034685,2]
[327644969,1716271833220,-351.89,0.00034685,2]
[327644970,1716271833229,-150.0,0.00034685,2]
[327644971,1716271833239,-10000.0,0.00034983,2]
[327644972,1716271833251,-150.0,0.00035,2]
[327644973,1716271833260,-1000.0,0.00035,7]
[327644974,1716271833270,-2985.73625279,0.00035014,4]
[327644975,1716271833280,-7346.13,0.00035015,5]
[327644976,1716271833290,-234.69211948,0.000351,2]
[327644977,1716271833300,-2493.7958,0.00035128,2]
[327644978,1716271833310,-234.69211942,0.00035131,2]
[327644979,1716271833319,-4154.73759946,0.00035135,2]
[327644980,1716271833329,-377.39265381,0.00035143,3]
[327644981,1716271833339,-234.69211942,0.00035162,2]
[327644982,1716271833348,-4154.73759943,0.00035162,2]
[327644983,1716271833358,-4154.73759943,0.00035189,2]
[327644984,1716271833367,-234.69211942,0.00035193,2]
[327644985,1716271833379,-606.678,0.000352,2]
[327644986,1716271833388,-2804.382,0.000352,2]
[327644987,1716271833397,-2500.0,0.000352,2]
[327644988,1716271833407,-200.0,0.00035207,30]
[327644989,1716271833417,-1000.0,0.00035214,30]
[327644990,1716271833427,-200.0,0.00035215,20]
[327644991,1716271833437,-1000.0,0.00035215,30]
[327644992,1716271833447,-500.0,0.00035215,10]
[327644994,1716271833457,-200.0,0.00035215,10]
[327644995,1716271833467,-1000.0,0.00035215,30]
[327644996,1716271833476,-200.0,0.00035215,20]
[327644997,1716271833486,-1000.0,0.00035215,30]
[327644998,1716271833495,-200.0,0.00035215,30]
[327644999,1716271833505,-500.0,0.00035215,10]
[327645000,1716271833516,-4154.73759943,0.00035216,2]
[327645001,1716271833526,-234.69211942,0.00035224,2]
[327645002,1716271833535,-150.0,0.00035225,2]
[327645003,1716271833550,-150.0,0.00035225,2]
[327645004,1716271833560,-150.0,0.00035235,2]
[327645005,1716271833570,-150.0,0.00035238,2]
[327645006,1716271833579,-150.0,0.0003524,2]
[327645007,1716271833590,-150.0,0.00035241,2]
[327645008,1716271833600,-4154.73759943,0.00035243,2]
[327645009,1716271833610,-150.0,0.00035247,2]
[327645010,1716271833619,-150.0,0.00035252,2]
[327645011,1716271833631,-150.0,0.00035254,2]
[327645012,1716271833641,-234.69211942,0.00035255,2]
[327645013,1716271833650,-150.0,0.00035258,2]
[327645014,1716271833659,-150.0,0.00035265,2]
[327645015,1716271833669,-150.0,0.00035265,2]
[327645016,1716271833679,-150.0,0.00035269,2]
[327645017,1716271833688,-208.0,0.0003527,2]
[327645018,1716271833697,-4154.73759943,0.00035271,2]
[327645019,1716271833706,-150.0,0.00035272,2]
[327645020,1716271833716,-150.0,0.00035285,2]
[327645021,1716271833725,-234.69211942,0.00035286,2]
[327645022,1716271833735,-150.0,0.00035287,2]
[327645023,1716271833744,-150.0,0.00035288,2]
[327645024,1716271833756,-4154.73759943,0.00035298,2]
[327645025,1716271833767,-95662.87527008,0.000353,7]
[327645031,1716271837844,-155.0,0.00032715,4]
[327645033,1716271837854,-349.60267719,0.00034983,2]
[327645041,1716271838152,-953.6646,0.00034983,2]
[327645042,1716271838164,-8696.73272281,0.00034983,2]
[327645043,1716271838173,-600.54621985,0.00035,4]
[327645044,1716271838184,-1997.90213274,0.00035,4]
[327645045,1716271838196,-289.40832921,0.00035,4]
[327645047,1716271839972,-366.36801204,0.00034983,2]
[327645053,1716271840309,-1072.58,0.00034983,2]
[327645054,1716271840323,-8561.05198796,0.00034983,2]
[327645055,1716271840333,-97.87957099,0.00035,4]
[327645056,1716271840342,-421.16228881,0.00035242,2]
[327645057,1716271840353,-153217.90948968,0.000353,7]
[327645058,1716271840362,-150.0,0.00035304,2]
[327645059,1716271840372,-150.0,0.00035313,2]
[327645060,1716271840382,-150.0,0.00035316,2]
[327645061,1716271840392,-4.00271807,0.00035317,2]
[327645258,1716271843136,-355.845,0.00034983,2]
[327645259,1716271843147,-3558.45,0.00034983,2]
[327645260,1716271843158,-3050.0,0.00034983,2]
[327645261,1716271843169,-498.7999998,0.00034983,2]
[327645262,1716271843180,-2536.9050002,0.00034983,2]
[327645263,1716271843189,-230.68940135,0.00035317,2]
[327645264,1716271843199,-150.0,0.00035322,2]
[327645265,1716271843208,-1732.40559845,0.00035325,2]
[327645266,1716271843451,-2422.33200098,0.00035325,2]
[327645267,1716271843462,-181.81835539,0.00035328,2]
[327645268,1716271843472,-150.0,0.00035333,2]
[327645269,1716271843483,-150.0,0.00035336,2]
[327645270,1716271843492,-150.0,0.0003534,2]
[327645271,1716271843501,-600.0,0.00035341,10]
[327645272,1716271843512,-755.58,0.00035342,6]
[327645273,1716271843521,-500.0,0.00035342,6]
[327645274,1716271843530,-500.0,0.00035342,6]
[327645275,1716271843541,-500.0,0.00035342,6]
[327645276,1716271843551,-850.96,0.00035342,6]
[327645277,1716271843563,-1039.49,0.00035342,6]
[327645278,1716271843573,-835.87,0.00035342,6]
[327645279,1716271843584,-835.87,0.00035342,6]
[327645280,1716271843595,-920.82,0.00035342,6]
[327645281,1716271843604,-1726.39,0.00035342,6]
[327645282,1716271843615,-920.82,0.00035342,6]
[327645283,1716271843624,-1389.63,0.00035342,6]
[327645284,1716271843635,-1394.5,0.00035342,6]
[327645285,1716271843644,-3032.98,0.00035342,6]
[327645286,1716271843654,-4314.53,0.00035342,6]
[327645287,1716271843664,-1983.05,0.00035342,6]
[327645288,1716271843674,-2763.25,0.00035342,6]
[327645289,1716271843684,-623.61,0.00035342,6]
[327645290,1716271843693,-623.61,0.00035342,6]
[327645291,1716271843702,-1498.97,0.00035342,6]
[327645293,1716271843712,-524.01087693,0.00035342,6]
[327645295,1716271843722,-1768.34,0.00035342,6]
[327645297,1716271843732,-2801.82,0.00035342,6]
[327645299,1716271843741,-1230.78,0.00035342,6]
[327645301,1716271843751,-500.66,0.00035342,6]
[327645303,1716271843761,-500.66,0.00035342,6]
[327645305,1716271843771,-1933.48,0.00035342,6]
[327645307,1716271843780,-500.0,0.00035342,6]
[327645309,1716271843790,-2452.34,0.00035342,6]
[327645311,1716271843800,-1008.21,0.00035342,6]
[327645313,1716271843809,-1080.9,0.00035342,2]
[327645315,1716271843818,-1080.9,0.00035342,2]
[327645317,1716271843828,-1758.19,0.00035342,6]
[327645319,1716271843837,-1357.77,0.00035342,6]
[327645321,1716271843846,-500.0,0.00035342,6]
[327645323,1716271843856,-500.0,0.00035342,6]
[327645325,1716271843865,-2000.0,0.00035342,6]
[327645327,1716271843875,-1760.9,0.00035342,6]
[327645329,1716271843883,-500.0,0.00035342,6]
[327645331,1716271843892,-1450.92,0.00035342,6]
[327645333,1716271843901,-500.0,0.00035342,6]
[327645335,1716271843912,-500.0,0.00035342,6]
[327645337,1716271843921,-1776.93,0.00035342,6]
[327645339,1716271843931,-500.0,0.00035342,6]
[327645341,1716271843940,-1733.54,0.00035342,6]
[327645344,1716271843949,-150.0,0.00035343,2]
[327645346,1716271843959,-234.69211942,0.00035348,2]
[327645349,1716271843968,-150.0,0.0003535,2]
[327645352,1716271843977,-4154.73759943,0.00035352,2]
[327645355,1716271843987,-150.0,0.00035358,2]
[327645358,1716271843996,-150.0,0.00035358,2]
[327645360,1716271844006,-150.0,0.00035366,2]
[327645361,1716271844016,-150.0,0.00035369,2]
[327645366,1716271844027,-150.0,0.00035378,2]
[327645369,1716271844036,-1039.49,0.00035378,6]
[327645372,1716271844045,-2763.25,0.00035378,6]
[327645374,1716271844055,-500.0,0.00035378,6]
[327645377,1716271844065,-1008.21,0.00035378,6]
[327645379,1716271844075,-613.02038628,0.00035378,8]
[327645380,1716271844084,-7500.0,0.00035379,2]
[327645381,1716271844093,-4154.73759943,0.00035379,2]
[327645382,1716271844103,-272.35082018,0.00035379,2]
[327645383,1716271844112,-234.69211942,0.00035379,2]
[327645384,1716271844121,-150.0,0.0003538,2]
[327645385,1716271844131,-613.02038617,0.0003538,8]
[327645386,1716271844141,-150.0,0.00035381,2]
[327645387,1716271844151,-150.0,0.00035382,2]
[327645388,1716271844161,-613.02038617,0.00035382,8]
[327645389,1716271844171,-150.0,0.00035383,2]
[327645390,1716271844181,-613.02038617,0.00035384,8]
[327645391,1716271844190,-150.0,0.00035385,2]
[327645392,1716271844199,-150.0,0.00035386,2]
[327645393,1716271844209,-613.02038617,0.00035386,8]
[327645394,1716271844219,-500.0,0.00035387,6]